[Event "33rd ECCC Open 2017"]
[Site "Antalya"]
[Date "2017.10.11"]
[Round "4"]
[White "Sukovic, Andrej"]
[Black "Naoum, Spyridon"]
[Result "1-0"]
[ECO "B89"]
[WhiteElo "2214"]
[BlackElo "2295"]
[Annotator "NA"]
[PlyCount "73"]
[EventType "team-tourn"]
[EventCountry "TUR"]
[SourceTitle "playchess.com"]
[Source "ChessBase"]
[SourceQuality "1"]
[WhiteTeam "Elektroprivreda"]
[BlackTeam "Chania"]
[TimeControl "40/5400+30:1800+30"]

1. e4 {[%emt 0:00:30]} c5 {[%emt 0:03:00]} 2. Nf3 {[%emt 0:00:30]} d6 {[%emt 0:00:30]} 3. d4 {[%emt 0:00:30]} cxd4 {[%emt 0:00:00]} 4. Nxd4 {[%emt 0:00:00]} Nf6 {[%emt 0:00:00]} 5. Nc3 {[%emt 0:01:00]} Nc6 {[%emt 0:01:30]} 6. Bc4 {[%emt 0:00:30]} e6 {[%emt 0:00:30]} 7. Be3 {[%emt 0:00:30]} Be7 {[%emt 0:00:30]} 8. Bb3 {[%emt 0:00:30]} a6 {[%emt 0:00:30]} 9. Qe2 {[%emt 0:00:00]} Qc7 {[%emt 0:08:30]} 10. O-O-O {[%emt 0:04:00]} Na5 {[%emt 0:01:30]} 11. g4 {[%emt 0:00:30]} b5 {[%emt 0:03:30]} 12. g5 {[%emt 0:00:30]} Nxb3+ {[%emt 0:00:30]} 13. axb3 {[%emt 0:01:30]} Nd7 {[%emt 0:00:30]} 14. h4 {[%emt 0:12:30]} Bb7 {[%emt 0:04:30] LiveBook: 16 Games} (14... b4 $5 {[%cal Rb4c3]} 15. Na4 Bb7 $15) 15. f3 {[%emt 0:00:30]} Nc5 {[%emt 0:06:30]} 16. h5 {[%emt 0:04:30]} b4 {[%emt 0:05:30]} 17. Na4 {[%emt 0:00:30]} Rc8 $14 {[%emt 0:06:30]} 18. Kb1 {[%emt 0:10:30]} Qa5 {[%emt 0:02:30]} 19. Qg2 {[%emt 0:08:30]} Nxa4 {[%emt 0:02:30]} 20. bxa4 {[%emt 0:00:00]} Qxa4 {[%emt 0:01:30]} 21. Qg4 {[%emt 0:10:00]} Rc5 {[%emt 0:22:30]} 22. Nb3 {[%emt 0:14:30]} Rc7 {[%emt 0:00:30]} 23. g6 {[%emt 0:02:30]} Bc8 {[%emt 0:11:48]} 24. h6 {[%emt 0:02:30]} Bf6 {[%emt 0:04:11]} 25. hxg7 {[%emt 0:01:30]} Bxg7 {[%emt 0:00:03]} 26. gxh7 {[%emt 0:00:30]} f6 {[%emt 0:04:14]} 27. Qg6+ {[%emt 0:00:30]} Kf8 {[%emt 0:00:37]} 28. Bh6 {[%emt 0:00:30]} Qd7 {[%emt 0:01:35]} 29. Rxd6 {[%emt 0:04:30]} Qxd6 {[%emt 0:00:22]} 30. Bxg7+ {[%emt 0:00:30]} Rxg7 {[%emt 0:00:10]} 31. Qxf6+ {[%emt 0:00:00]} Ke8 {[%emt 0:00:30]} 32. Qxg7 {[%emt 0:00:00]} Qf8 {[%emt 0:00:00]} 33. Qc7 {[%emt 0:00:30]} Bd7 {[%emt 0:00:22]} 34. Nc5 {[%emt 0:00:30]} Bb5 {[%emt 0:02:07]} 35. Qc8+ {[%emt 0:00:30]} Ke7 {[%emt 0:00:30]} 36. Qxe6+ {[%emt 0:00:30]} Kd8 {[%emt 0:00:01]} 37. Qb6+ {[%emt 0:01:30]} 1-0

[Event "33rd ECCC Open 2017"]
[Site "Antalya"]
[Date "2017.10.11"]
[Round "4"]
[White "Walton, Alan J"]
[Black "Asllani, Ibrahim"]
[Result "1-0"]
[ECO "A45"]
[WhiteElo "2207"]
[BlackElo "2072"]
[Annotator "NA"]
[PlyCount "75"]
[EventType "team-tourn"]
[EventCountry "TUR"]
[SourceTitle "playchess.com"]
[Source "ChessBase"]
[SourceQuality "1"]
[WhiteTeam "3CS Oldham"]
[BlackTeam "Hasan Pristina"]
[TimeControl "40/5400+30:1800+30"]

1. d4 {[%emt 0:00:30]} Nf6 {[%emt 0:01:00]} 2. Bg5 {[%emt 0:00:00]} e6 {[%emt 0:00:30]} 3. e4 {[%emt 0:00:00]} Be7 {[%emt 0:00:00]} 4. e5 {[%emt 0:00:30]} Nd5 {[%emt 0:00:00]} 5. Bd2 {[%emt 0:00:30]} c5 {[%emt 0:00:30] A45: Trompowsky Attack} 6. c4 {[%emt 0:00:30]} Nc7 {[%emt 0:00:30]} 7. Qg4 {[%emt 0:00:30]} O-O {[%emt 0:01:30]} (7... g6 8. dxc5 Nc6 9. Nf3 Bxc5 10. Nc3 d5 11. exd6 Bxd6 12. O-O-O e5 13. Qg3 {1-0 (36) Galego,L (2495)-Ulyanovskyy,V (2290) Pampilhosa da Serra 2012}) 8. Bh6 {[%emt 0:00:30]} Ne8 {[%emt 0:00:00]} 9. Bd3 $146 {[%emt 0:04:30]} ({Predecessor:} 9. dxc5) 9... Nc6 {[%emt 0:01:00]} 10. Nf3 {[%emt 0:21:30]} f5 $2 {[%emt 0:12:30]} (10... Nb4 $19 {is more deadly.} 11. Ke2 d6) 11. exf6 {[%emt 0:01:30]} Rxf6 {[%emt 0:00:30]} 12. Bd2 {[%emt 0:01:30]} Rf7 {[%emt 0:07:30]} 13. Ne5 {[%emt 0:02:30]} Nxe5 {[%emt 0:02:30]} 14. dxe5 {[%emt 0:00:30]} d6 {[%emt 0:00:30]} 15. Qh3 {[%emt 0:05:30]} g6 {[%emt 0:00:30]} 16. Nc3 {[%emt 0:02:30]} dxe5 {[%emt 0:05:30]} 17. O-O-O {[%emt 0:01:30]} Bg5 {[%emt 0:01:30]} ({Don't go for} 17... Rxf2 $2 18. Be3 $18) (17... Ng7 $11) 18. Ne4 {[%emt 0:02:30]} Bxd2+ {[%emt 0:00:30]} 19. Rxd2 {[%emt 0:00:30]} Qe7 {[%emt 0:02:30]} 20. Qe3 {[%emt 0:01:30]} b6 {[%emt 0:03:30]} 21. h4 $16 {[%emt 0:01:30]} Ng7 {[%emt 0:01:30]} 22. Ng5 {[%emt 0:00:30]} Rf5 {[%emt 0:01:30]} 23. Bxf5 {[%emt 0:00:30]} exf5 {[%emt 0:01:30]} 24. Rhd1 {[%emt 0:00:30]} h6 {[%emt 0:01:30]} 25. Rd8+ {[%emt 0:00:30]} Ne8 {[%emt 0:00:30]} 26. Nf3 {[%emt 0:00:30]} e4 {[%emt 0:01:30]} 27. Ne1 {[%emt 0:06:30]} Kh7 {[%emt 0:00:30]} 28. Qc3 {[%emt 0:02:30]} Ng7 {[%emt 0:01:30]} 29. Nc2 {[%emt 0:03:30]} f4 {[%emt 0:03:30]} 30. g3 {[%emt 0:00:30]} g5 {[%emt 0:01:30]} 31. hxg5 {[%emt 0:01:30]} Qxg5 {[%emt 0:01:30]} 32. gxf4 {[%emt 0:00:30]} Qxf4+ {[%emt 0:01:30]} 33. Ne3 {[%emt 0:00:30]} Qg5 {[%emt 0:01:30]} 34. Kc2 {[%emt 0:02:30]} Bb7 {[%emt 0:02:30]} 35. Rxa8 {[%emt 0:00:30]} Bxa8 {[%emt 0:00:30]} 36. Rd7 {[%emt 0:00:30]} Bc6 {[%emt 0:01:30]} 37. Rc7 {[%emt 0:00:30]} Be8 {[%emt 0:01:30]} 38. Nf5 {[%emt 0:00:30]} 1-0

[Event "33rd ECCC Open 2017"]
[Site "Antalya"]
[Date "2017.10.11"]
[Round "4"]
[White "Stanic, Zoran"]
[Black "Yuksel, Mahmut"]
[Result "1-0"]
[ECO "A43"]
[WhiteElo "2169"]
[BlackElo "1701"]
[Annotator "NA"]
[PlyCount "74"]
[EventType "team-tourn"]
[EventCountry "TUR"]
[SourceTitle "playchess.com"]
[Source "ChessBase"]
[SourceQuality "1"]
[WhiteTeam "Bonnevoie"]
[BlackTeam "Genc"]
[TimeControl "40/5400+30:1800+30"]

1. d4 {[%emt 0:00:30]} c5 {[%emt 0:01:00]} 2. dxc5 {[%emt 0:01:30]} e6 {[%emt 0:02:30]} 3. e4 {[%emt 0:03:30]} Bxc5 {[%emt 0:00:30]} 4. Nc3 {[%emt 0:00:30]} Qb6 {[%emt 0:05:30]} 5. Qf3 {[%emt 0:09:30]} Nc6 {[%emt 0:05:30]} 6. Qg3 {[%emt 0:06:30]} Nge7 {[%emt 0:11:30]} 7. a3 {[%emt 0:10:30]} d5 {[%emt 0:22:30]} 8. Bd3 $11 {[%emt 0:06:30]} Bd4 {[%emt 0:11:30]} 9. Nf3 {[%emt 0:17:30]} Bxc3+ {[%emt 0:04:30]} 10. bxc3 {[%emt 0:00:30]} Ng6 {[%emt 0:08:30]} 11. h4 {[%emt 0:08:30]} dxe4 {[%emt 0:03:57]} 12. Bxe4 {[%emt 0:00:30]} f5 {[%emt 0:00:00]} 13. Bd3 {[%emt 0:03:30]} Qc5 {[%emt 0:03:26]} 14. Bd2 {[%emt 0:15:10]} f4 {[%emt 0:00:00]} 15. Bxg6+ {[%emt 0:01:55]} hxg6 {[%emt 0:00:00]} 16. Qxg6+ {[%emt 0:01:19]} Kf8 {[%emt 0:00:00]} 17. Ng5 {[%emt 0:03:52]} Qf5 {[%emt 0:00:00]} 18. Qxf5+ {[%emt 0:00:00]} exf5 {[%emt 0:00:00]} 19. Bxf4 {[%emt 0:00:25]} Ke7 {[%emt 0:00:00]} 20. O-O-O {[%emt 0:01:39]} Rd8 {[%emt 0:00:00]} 21. Rhe1+ {[%emt 0:01:54]} Kf6 {[%emt 0:02:22]} 22. Rxd8 {[%emt 0:00:03]} Nxd8 {[%emt 0:00:46]} 23. Re8 {[%emt 0:01:56]} Bd7 {[%emt 0:01:14]} 24. Be5+ {[%emt 0:00:49]} Kg6 {[%emt 0:04:47]} 25. Rh8 {[%emt 0:02:20]} Nc6 {[%emt 0:02:30]} 26. Rxa8 {[%emt 0:00:30]} Nxe5 {[%emt 0:00:15]} 27. Rxa7 {[%emt 0:00:45]} Bc6 {[%emt 0:00:47]} 28. g3 {[%emt 0:01:07]} Kh5 {[%emt 0:00:30]} 29. Ra5 {[%emt 0:00:00]} Nc4 {[%emt 0:01:06]} 30. Rxf5 {[%emt 0:00:17]} Nxa3 {[%emt 0:02:41]} 31. Ne6+ {[%emt 0:00:20]} Kh6 {[%emt 0:03:50]} 32. Nd4 {[%emt 0:00:41]} Bg2 {[%emt 0:00:30]} 33. Rc5 {[%emt 0:00:30]} Bf1 {[%emt 0:00:30]} 34. Nf5+ {[%emt 0:00:39]} Kg6 {[%emt 0:00:00]} 35. Ne3 {[%emt 0:00:30]} Ba6 {[%emt 0:00:15]} 36. c4 {[%emt 0:00:30]} b6 {[%emt 0:00:30]} 37. Rc6+ {[%emt 0:00:30]} Kh5 {[%emt 0:05:09]} 1-0

[Event "33rd ECCC Open 2017"]
[Site "Antalya"]
[Date "2017.10.11"]
[Round "4"]
[White "Jackson, Carl"]
[Black "Civi, Anil"]
[Result "1-0"]
[ECO "C13"]
[WhiteElo "2149"]
[BlackElo "1385"]
[Annotator "NA"]
[PlyCount "127"]
[EventType "team-tourn"]
[EventCountry "TUR"]
[SourceTitle "playchess.com"]
[Source "ChessBase"]
[SourceQuality "1"]
[WhiteTeam "Gonzaga"]
[BlackTeam "Hatay"]
[TimeControl "40/5400+30:1800+30"]

1. e4 e6 2. d4 d5 3. Nc3 dxe4 4. Nxe4 Nf6 5. Bg5 Be7 6. Bxf6 Bxf6 7. Nxf6+ Qxf6 8. Nf3 Nd7 9. Qd2 O-O 10. O-O-O a6 11. Be2 b5 12. Qg5 Bb7 13. Qg3 Rac8 14. Rd2 c5 15. Rhd1 c4 16. Ne5 {[#]} Rfd8 $15 (16... Nb6 $1 $17 17. c3 Qe7) 17. c3 Be4 18. Bf3 Bd5 19. Bxd5 exd5 20. Nxd7 Rxd7 21. Qe5 Qb6 22. Re1 h6 23. Rde2 b4 24. Qf5 Rdd8 25. Re7 Qf6 26. Qxf6 gxf6 27. cxb4 c3 28. b3 Kf8 29. Kc2 Rd6 30. R7e3 Rdc6 31. Rh3 f5 32. Ree3 Re8 33. Rxe8+ Kxe8 34. Rxc3 Rg6 35. g3 Ke7 36. Rc5 Kd6 37. b5 axb5 38. Rxb5 Kc6 39. Rc5+ Kd6 40. f4 h5 41. b4 Re6 42. Kd3 Re1 43. Rc2 Rd1+ 44. Kc3 Kc6 45. Rb2 Kb5 46. a3 Rf1 47. a4+ Kxa4 48. b5 Rf3+ 49. Kc2 Rf2+ 50. Kb1 Rxb2+ 51. Kxb2 Kxb5 52. Kb3 Kc6 53. Ka4 Kb6 54. Kb4 Kc6 55. Ka5 Kc7 56. Kb5 Kd6 57. Kb6 Kd7 58. Kc5 Ke6 59. Kc6 f6 60. h3 Ke7 61. Kxd5 Kd7 62. h4 Ke7 63. Kc6 Kd8 64. Kd6 1-0

[Event "33rd ECCC Open 2017"]
[Site "Antalya"]
[Date "2017.10.11"]
[Round "4"]
[White "Jashari, Ardian"]
[Black "Vea, Odin Blikra"]
[Result "0-1"]
[ECO "B77"]
[WhiteElo "2116"]
[BlackElo "2211"]
[Annotator "NA"]
[PlyCount "59"]
[EventType "team-tourn"]
[EventCountry "TUR"]
[SourceTitle "playchess.com"]
[Source "ChessBase"]
[SourceQuality "1"]
[WhiteTeam "Dardania"]
[BlackTeam "Valerenga"]
[TimeControl "40/5400+30:1800+30"]

1. e4 {[%emt 0:00:00]} c5 {[%emt 0:00:00]} 2. Nf3 {[%emt 0:00:00]} d6 {[%emt 0:00:30]} 3. d4 {[%emt 0:00:30]} cxd4 {[%emt 0:00:30]} 4. Nxd4 {[%emt 0:00:30]} Nf6 {[%emt 0:00:00]} 5. Nc3 {[%emt 0:00:30]} g6 {[%emt 0:00:00]} 6. Be3 {[%emt 0:03:30]} Bg7 {[%emt 0:00:30]} 7. Bc4 {[%emt 0:00:00]} Nc6 {[%emt 0:00:30]} 8. Qd2 {[%emt 0:03:00]} O-O {[%emt 0:00:30]} 9. f3 {[%emt 0:00:30]} Bd7 {[%emt 0:00:00]} 10. O-O {[%emt 0:04:30]} Rc8 {[%emt 0:00:00]} 11. Bb3 {[%emt 0:00:00]} Ne5 {[%emt 0:00:30]} 12. Nd5 {[%emt 0:01:00]} Nc4 {[%emt 0:04:30]} 13. Bxc4 {[%emt 0:00:30]} Rxc4 {[%emt 0:00:00] B77: Sicilian Dragon: Yugoslav Attack, 9 Bc4 sidelines} 14. b3 {[%emt 0:01:30]} Rc8 {[%emt 0:00:00]} 15. c4 {[%emt 0:02:30]} a6 {[%emt 0:04:30]} 16. a4 {[%emt 0:09:30]} Re8 $146 {[%emt 0:00:30]} ({Predecessor:} 16... a5 17. Rad1 Bc6 18. Nxc6 Rxc6 19. Bd4 Nd7 20. Bxg7 Kxg7 21. Qc3+ {½-½ (34) Barglowski,F (2337)-Sondermann,J (2163) Pardubice 2006}) 17. a5 {[%emt 0:00:30]} Nxd5 {[%emt 0:00:30]} 18. exd5 {[%emt 0:00:00]} e5 {[%emt 0:00:30]} 19. dxe6 {[%emt 0:01:00]} fxe6 {[%emt 0:01:30]} 20. Rad1 {[%emt 0:01:30]} e5 {[%emt 0:02:30]} (20... d5 $11) 21. Ne2 {[%emt 0:00:00]} Bc6 {[%emt 0:09:30]} 22. Bb6 {[%emt 0:01:00]} ({Viel schlechter ist} 22. Qxd6 $6 Qxa5 23. Ng3 Rcd8 $11) 22... Qh4 {[%emt 0:00:30]} 23. Nc3 {[%emt 0:04:30]} e4 {[%emt 0:02:30]} 24. Nxe4 {[%emt 0:01:30]} Rxe4 {[%emt 0:01:30]} 25. fxe4 {[%emt 0:01:30]} Be5 {[%emt 0:00:30]} 26. h3 $18 {[%emt 0:11:30]} Qg3 {[%emt 0:00:30]} 27. Rf3 {[%emt 0:00:30]} Qh2+ {[%emt 0:00:30]} 28. Kf2 {[%emt 0:01:30]} Bxe4 {[%emt 0:00:30]} 29. Rf1 {[%emt 0:02:30]} Bxf3 {[%emt 0:00:30]} 30. Qc2 {[%emt 0:01:30]} 0-1

[Event "33rd ECCC Open 2017"]
[Site "Antalya"]
[Date "2017.10.11"]
[Round "4"]
[White "Cirovic, Miroljub"]
[Black "Georgakopoulos, Nikolaos K"]
[Result "1-0"]
[ECO "A42"]
[WhiteElo "2095"]
[BlackElo "2086"]
[Annotator "NA"]
[PlyCount "87"]
[EventType "team-tourn"]
[EventCountry "TUR"]
[SourceTitle "playchess.com"]
[Source "ChessBase"]
[SourceQuality "1"]
[WhiteTeam "Elektroprivreda"]
[BlackTeam "Chania"]
[TimeControl "40/5400+30:1800+30"]

1. d4 {[%emt 0:01:30]} g6 {[%emt 0:01:00]} 2. c4 {[%emt 0:00:30]} Bg7 {[%emt 0:00:00]} 3. Nc3 {[%emt 0:00:00]} d6 {[%emt 0:00:00]} 4. e4 {[%emt 0:01:00]} c6 {[%emt 0:00:30]} 5. Nf3 {[%emt 0:00:30]} a6 {[%emt 0:00:00]} 6. Be2 {[%emt 0:05:30]} b5 {[%emt 0:00:00]} 7. a3 {[%emt 0:02:30]} Nd7 {[%emt 0:00:30]} 8. Be3 {[%emt 0:00:30]} Ngf6 {[%emt 0:02:30]} 9. Nd2 {[%emt 0:02:30]} e5 {[%emt 0:05:30]} 10. d5 {[%emt 0:00:00]} cxd5 {[%emt 0:01:30]} 11. cxd5 {[%emt 0:00:00]} O-O {[%emt 0:02:30]} 12. O-O {[%emt 0:00:30]} Ne8 {[%emt 0:14:30]} 13. b4 {[%emt 0:01:30]} f5 {[%emt 0:01:30]} 14. f3 {[%emt 0:00:30]} f4 {[%emt 0:12:30]} (14... fxe4 $16 {is a better defense.} 15. Ndxe4 Ndf6) 15. Bf2 {[%emt 0:00:30]} g5 {[%emt 0:02:30]} (15... Nb6 $16 {might work better.}) 16. a4 {[%emt 0:01:30]} bxa4 {[%emt 0:00:30]} 17. Nxa4 {[%emt 0:01:30]} Rb8 {[%emt 0:02:30]} 18. Nc5 $14 {[%emt 0:11:30]} (18. Nc4 $18) 18... Nc7 {[%emt 0:10:30]} 19. Nxa6 {[%emt 0:09:30]} Bxa6 {[%emt 0:10:30]} 20. Bxa6 {[%emt 0:00:00]} Rxb4 {[%emt 0:00:30]} 21. Be2 {[%emt 0:01:00]} Nb5 {[%emt 0:05:30]} 22. Bxb5 {[%emt 0:01:30]} Rxb5 {[%emt 0:00:30]} 23. Qa4 {[%emt 0:00:00]} Qb8 {[%emt 0:08:10]} 24. Rab1 {[%emt 0:00:00]} Rxb1 {[%emt 0:02:17]} 25. Rxb1 {[%emt 0:00:00]} Qc7 {[%emt 0:04:18]} 26. Qc6 {[%emt 0:00:00]} Qa5 {[%emt 0:02:45]} 27. Nc4 {[%emt 0:01:30]} Qa2 {[%emt 0:00:56]} 28. Rc1 {[%emt 0:00:30]} Nf6 {[%emt 0:04:13]} 29. Nxd6 {[%emt 0:00:30]} g4 {[%emt 0:00:20]} 30. Nf5 {[%emt 0:01:30]} gxf3 {[%emt 0:02:26]} 31. gxf3 {[%emt 0:00:00]} Kh8 {[%emt 0:03:26]} 32. Qc4 {[%emt 0:02:00]} Qa3 {[%emt 0:01:12]} 33. Qc3 {[%emt 0:00:00]} Qxc3 {[%emt 0:00:39]} 34. Rxc3 {[%emt 0:00:00]} Nxd5 {[%emt 0:00:37]} 35. Rc5 {[%emt 0:01:30]} Nb4 {[%emt 0:00:35]} 36. Bh4 {[%emt 0:02:30]} Rg8 {[%emt 0:00:34]} 37. Kf1 {[%emt 0:00:30]} Nd3 {[%emt 0:00:55]} 38. Rc7 {[%emt 0:00:30]} Rb8 {[%emt 0:00:29]} 39. Rxg7 {[%emt 0:00:00]} Rb1+ {[%emt 0:00:29]} 40. Kg2 {[%emt 0:00:00]} h5 {[%emt 0:00:39]} 41. Rd7 {[%emt 0:00:30]} Rb2+ {[%emt 0:02:30]} 42. Kh3 {[%emt 0:00:30]} Rb3 {[%emt 0:02:30]} 43. Nh6 {[%emt 0:00:30]} Nf2+ {[%emt 0:03:30]} 44. Kg2 {[%emt 0:00:00]} 1-0

[Event "33rd ECCC Open 2017"]
[Site "Antalya"]
[Date "2017.10.11"]
[Round "4"]
[White "Kocak, Can"]
[Black "Hove, Esben Kjems"]
[Result "0-1"]
[ECO "B12"]
[WhiteElo "2039"]
[BlackElo "2337"]
[Annotator "NA"]
[PlyCount "124"]
[EventType "team-tourn"]
[EventCountry "TUR"]
[SourceTitle "playchess.com"]
[Source "ChessBase"]
[SourceQuality "1"]
[WhiteTeam "Karaman"]
[BlackTeam "Nordkalotten"]
[TimeControl "40/5400+30:1800+30"]

1. e4 {[%emt 0:00:30]} c6 {[%emt 0:01:00]} 2. d4 {[%emt 0:00:30]} d5 {[%emt 0:00:30]} 3. e5 {[%emt 0:00:00]} Bf5 {[%emt 0:00:00]} 4. Nf3 {[%emt 0:00:00]} e6 {[%emt 0:00:00] LiveBook: 5525 Games} 5. Be2 {[%emt 0:02:30]} Nd7 {[%emt 0:00:30]} 6. O-O {[%emt 0:00:30]} Ne7 {[%emt 0:00:00]} 7. c3 {[%emt 0:01:30]} c5 {[%emt 0:00:00]} 8. dxc5 {[%emt 0:00:30]} Nxc5 {[%emt 0:00:30] B12: Caro-Kann: Advance Variation} 9. Nd4 {[%emt 0:00:30]} Bg6 {[%emt 0:03:30]} 10. Nd2 {[%emt 0:03:30]} Nc6 {[%emt 0:02:30]} 11. f4 $146 {[%emt 0:16:30]} ({Predecessor:} 11. Nxc6 bxc6 12. b4 Nd3 13. Nf3 Nxc1 14. Rxc1 {1-0 (63) Karjakin,S (2773)-Anand,V (2783) Saint Louis 2017}) 11... Be7 {[%emt 0:05:30]} 12. g4 {[%emt 0:09:30]} Bd3 {[%emt 0:07:30]} 13. b4 {[%emt 0:18:30]} Bxe2 {[%emt 0:01:30]} 14. Qxe2 {[%emt 0:00:30]} Na4 {[%emt 0:04:30]} 15. Nxc6 {[%emt 0:15:30]} Qb6+ {[%emt 0:03:30]} 16. Nd4 {[%emt 0:16:21]} Nxc3 {[%emt 0:02:30]} 17. Qf2 {[%emt 0:00:00]} Qxd4 $1 {[%emt 0:00:30]} 18. Qxd4 {[%emt 0:04:16]} Ne2+ {[%emt 0:00:00]} 19. Kf2 {[%emt 0:00:36]} Nxd4 {[%emt 0:00:00]} 20. a3 {[%emt 0:01:06]} a6 {[%emt 0:09:30]} 21. Bb2 {[%emt 0:01:02]} Nc6 {[%emt 0:02:30]} 22. Nb3 {[%emt 0:00:51]} Bd8 {[%emt 0:10:30]} 23. Kg3 {[%emt 0:01:06]} h5 {[%emt 0:02:30]} 24. h3 {[%emt 0:02:09]} Bb6 {[%emt 0:01:30]} 25. Rac1 {[%emt 0:00:56]} hxg4 {[%emt 0:03:30]} 26. hxg4 {[%emt 0:00:01]} g5 {[%emt 0:00:30]} 27. fxg5 {[%emt 0:02:36]} Be3 {[%emt 0:00:30]} 28. Rh1 {[%emt 0:01:32]} Ke7 {[%emt 0:00:30]} 29. Rce1 {[%emt 0:00:36]} Bxg5 {[%emt 0:02:30]} 30. Nc5 {[%emt 0:00:20]} b5 {[%emt 0:11:30]} 31. Kf3 {[%emt 0:00:56]} d4 {[%emt 0:10:14]} 32. Rxh8 {[%emt 0:00:58]} Rxh8 {[%emt 0:00:09]} 33. Nxa6 {[%emt 0:00:03]} Rh3+ {[%emt 0:02:52]} 34. Kg2 {[%emt 0:00:14]} Rb3 {[%emt 0:01:39]} 35. Rb1 {[%emt 0:00:19]} Bf4 {[%emt 0:04:17]} 36. Nc5 {[%emt 0:00:15]} Rg3+ {[%emt 0:00:16]} 37. Kf2 {[%emt 0:00:24]} Nxe5 {[%emt 0:02:09]} 38. Bxd4 {[%emt 0:01:15]} Nxg4+ {[%emt 0:00:14]} 39. Ke2 {[%emt 0:00:30]} Rxa3 {[%emt 0:00:09]} 40. Rg1 {[%emt 0:00:00]} Ne5 {[%emt 0:03:01]} 41. Ne4 {[%emt 0:13:16]} Ra2+ {[%emt 0:11:30]} 42. Kd1 {[%emt 0:01:12]} Ng6 {[%emt 0:11:37]} 43. Ke1 {[%emt 0:14:17]} e5 {[%emt 0:01:29]} 44. Bc5+ {[%emt 0:00:30]} Ke6 {[%emt 0:01:23]} 45. Kf1 {[%emt 0:01:50]} Nh4 {[%emt 0:02:37]} (45... Ra1+ $142 46. Ke2 Rxg1 47. Bxg1 Kd5 48. Nf6+ Kc6) 46. Nc3 {[%emt 0:01:11]} Rb2 {[%emt 0:01:51]} 47. Nxb5 {[%emt 0:00:39]} Nf3 {[%emt 0:01:21]} 48. Rg8 {[%emt 0:00:51]} Nd2+ {[%emt 0:01:41]} 49. Kg1 {[%emt 0:01:16]} Ne4 {[%emt 0:02:03]} 50. Nc7+ {[%emt 0:00:26]} Kf5 {[%emt 0:00:32]} 51. Nd5 {[%emt 0:00:31]} Ng5 {[%emt 0:01:55]} 52. Nc3 {[%emt 0:00:37]} e4 {[%emt 0:00:55]} 53. Re8 {[%emt 0:00:26]} (53. Nd5 $142) 53... Be5 {[%emt 0:01:33]} 54. Nb5 {[%emt 0:00:33]} Ne6 {[%emt 0:00:20]} 55. Nd6+ {[%emt 0:00:00]} Bxd6 $1 {[%emt 0:00:33]} 56. Bxd6 {[%emt 0:00:30]} e3 {[%emt 0:00:05]} 57. Kf1 {[%emt 0:00:49]} Ke4 {[%emt 0:00:42]} 58. Rh8 {[%emt 0:00:42]} Nd4 {[%emt 0:00:44]} 59. Rh4+ {[%emt 0:00:24]} Kd3 {[%emt 0:00:22]} 60. Rh3 {[%emt 0:00:37]} Rf2+ {[%emt 0:00:23]} 61. Kg1 {[%emt 0:00:50]} Nf3+ {[%emt 0:00:30]} 62. Kh1 {[%emt 0:00:00]} e2 {[%emt 0:00:00]} 0-1

[Event "33rd ECCC Open 2017"]
[Site "Antalya"]
[Date "2017.10.11"]
[Round "4"]
[White "Patrelakis, Evaggelos"]
[Black "Aleksic, Nenad C"]
[Result "1/2-1/2"]
[ECO "B96"]
[WhiteElo "1998"]
[BlackElo "2261"]
[Annotator "NA"]
[PlyCount "115"]
[EventType "team-tourn"]
[EventCountry "TUR"]
[SourceTitle "playchess.com"]
[Source "ChessBase"]
[SourceQuality "1"]
[WhiteTeam "Chania"]
[BlackTeam "Elektroprivreda"]
[TimeControl "40/5400+30:1800+30"]

1. e4 {[%emt 0:00:30]} c5 {[%emt 0:01:00]} 2. Nf3 {[%emt 0:00:00]} d6 {[%emt 0:00:30]} 3. d4 {[%emt 0:00:00]} cxd4 {[%emt 0:01:30]} 4. Nxd4 {[%emt 0:00:00]} Nf6 {[%emt 0:00:30]} 5. Nc3 {[%emt 0:00:00]} a6 {[%emt 0:00:30]} 6. Bg5 {[%emt 0:00:30]} e6 {[%emt 0:00:30]} 7. f4 {[%emt 0:00:30]} h6 {[%emt 0:00:30]} 8. Bh4 {[%emt 0:00:00]} Qb6 {[%emt 0:01:30]} 9. a3 {[%emt 0:00:00]} Nc6 {[%emt 0:00:30] B96: Sicilian Najdorf: 6 Bg5 e6 7 f4, lines other than 7...Qb6 and 7...Be7} (9... Be7 10. Qd3 Nbd7 11. O-O-O g5 12. fxg5 Ne5 13. Qd2 Nh7 14. Nf3 hxg5 15. Bf2 Qc7 16. Be2 Bd7 17. h4 {½-½ (30) Caruana,F (2807)-Vachier Lagrave,M (2791) Saint Louis 2017}) 10. Bf2 {[%emt 0:00:30]} Qc7 {[%emt 0:00:30]} 11. Qf3 {[%emt 0:05:30]} Bd7 {[%emt 0:02:30]} 12. Be2 {[%emt 0:03:30]} h5 $146 {[%emt 0:04:30]} ({Predecessor:} 12... Be7 13. Rd1 O-O 14. O-O Nxd4 15. Bxd4 Bc6 16. Qg3 Rac8 17. Bf3 {½-½ (38) Llorente Alvarez,J (2128)-Orsolic,M (2118) LSS email 2010}) 13. h3 {[%emt 0:01:30]} Nxd4 {[%emt 0:01:30]} 14. Bxd4 {[%emt 0:00:30]} Bc6 {[%emt 0:00:00]} 15. O-O-O {[%emt 0:06:30]} h4 {[%emt 0:02:00]} 16. Rhe1 {[%emt 0:04:30]} Be7 {[%emt 0:02:30]} 17. Qe3 {[%emt 0:04:30]} b5 {[%emt 0:00:30]} 18. Bf3 {[%emt 0:02:30]} O-O {[%emt 0:05:30]} 19. Kb1 {[%emt 0:15:30]} a5 {[%emt 0:06:30]} 20. e5 {[%emt 0:11:30]} dxe5 {[%emt 0:01:30]} 21. fxe5 {[%emt 0:06:30]} Nd7 {[%emt 0:01:30]} 22. Bxc6 {[%emt 0:05:30]} Qxc6 {[%emt 0:00:30]} 23. Ne4 {[%emt 0:00:00]} b4 $14 {[%emt 0:01:30]} 24. Nf6+ {[%emt 0:04:00]} Bxf6 {[%emt 0:07:30]} 25. exf6 {[%emt 0:00:00]} Rfc8 {[%emt 0:01:30]} 26. Re2 {[%emt 0:07:00]} e5 {[%emt 0:00:00]} 27. Bxe5 {[%emt 0:00:30]} Nxf6 {[%emt 0:01:00]} 28. Rd6 {[%emt 0:03:06]} Qc5 {[%emt 0:00:30]} 29. Qxc5 {[%emt 0:03:15]} Rxc5 {[%emt 0:00:00]} 30. Bxf6 {[%emt 0:01:25]} gxf6 {[%emt 0:00:00]} 31. a4 {[%emt 0:00:31]} Kg7 {[%emt 0:01:30]} 32. Rf2 {[%emt 0:02:34]} f5 {[%emt 0:00:30]} 33. Rd4 {[%emt 0:00:37]} Rh8 {[%emt 0:00:30]} 34. Rff4 {[%emt 0:02:36]} Re8 {[%emt 0:00:00]} 35. Rc4 {[%emt 0:03:19]} Rxc4 {[%emt 0:05:00]} 36. Rxc4 {[%emt 0:00:30]} Re2 {[%emt 0:00:00]} 37. Rc5 {[%emt 0:02:05]} Kf6 {[%emt 0:00:00]} 38. Rxa5 {[%emt 0:01:25]} Rxg2 {[%emt 0:00:30]} 39. Kc1 {[%emt 0:00:30]} f4 {[%emt 0:00:00]} 40. Kd1 {[%emt 0:01:08]} f3 {[%emt 0:30:00]} 41. Ke1 {[%emt 0:00:59]} Rxc2 {[%emt 0:00:00]} 42. Rb5 {[%emt 0:02:30]} Rxb2 {[%emt 0:00:00]} 43. a5 {[%emt 0:00:00]} b3 {[%emt 0:00:00]} 44. a6 {[%emt 0:01:00]} Rb1+ {[%emt 0:00:00]} 45. Kf2 {[%emt 0:00:30]} b2 {[%emt 0:00:00]} 46. a7 {[%emt 0:04:30]} Ra1 {[%emt 0:00:00]} 47. Kxf3 {[%emt 0:00:30]} Rxa7 {[%emt 0:00:00]} 48. Rxb2 {[%emt 0:00:30]} Ra4 {[%emt 0:00:00]} 49. Rb5 {[%emt 0:01:30]} Kg6 {[%emt 0:00:00]} 50. Rc5 {[%emt 0:01:30]} f5 {[%emt 0:00:00]} 51. Rc8 {[%emt 0:00:30]} Ra3+ {[%emt 0:00:30]} 52. Kf4 {[%emt 0:00:30]} Rxh3 {[%emt 0:00:00]} 53. Rc6+ {[%emt 0:01:30]} Kh5 {[%emt 0:00:00]} 54. Rc5 {[%emt 0:00:00]} Rh1 {[%emt 0:00:30]} 55. Rxf5+ {[%emt 0:00:00]} Kg6 {[%emt 0:00:30]} 56. Rg5+ {[%emt 0:01:30]} Kh6 {[%emt 0:00:30]} 57. Ra5 {[%emt 0:00:30]} Rg1 {[%emt 0:00:30]} 58. Ra6+ {[%emt 0:00:30]} 1/2-1/2